Cogmind - Beta 16 @@@ ROGUE MODE // 2025.11.09 @ 16:42:43 Player: kim.jet.wav Result: Self-destructed Performance ------------- Evolutions (1) 500 Regions Visited (3) 600 Robots Destroyed (33) 165 Value Destroyed (860) 860 Prototype IDs (2) 40 Alien Tech Used (0) 0 Bonus (0) 0 TOTAL SCORE: 2165 Bonus ------- None Cogmind --------- Core Integrity 221/400 Matter 233/300 Energy 280/280 System Corruption 18% Temperature Cool (0) Movement Core (400) Ox7 Location -9/Storage Parts ------- > --- POWER (1) -------- Cooled Ion Engine > --- PROPULSION (3) --- (None) > --- UTILITY (3) ------ Medium Storage Unit > --- WEAPON (2) ------- Light EM Pulse Cannon > --- INVENTORY (10) --- Deuterium Engine Deuterium Engine Improved Hover Unit Airjet Structural Scanner Seismic Detector Transport Network Coupler Targeting Computer Particle Gun Peak State ------------ > --- POWER ------------ Deuterium Engine > --- PROPULSION ------- Airjet Airjet Airjet > --- UTILITY ---------- Medium Storage Unit Weight Redist. System Advanced Visual Processing Unit > --- WEAPON ----------- Particle Gun Light EM Pulse Cannon > --- INVENTORY -------- Deuterium Engine Aluminum Leg Aluminum Leg Improved Hover Unit Improved Hover Unit Structural Scanner Seismic Detector Transport Network Coupler Targeting Computer Rocket Launcher [Rating: 23] Favorites ----------- Power Light Ion Engine Engine Light Ion Engine Propulsion Aluminum Leg Leg Aluminum Leg Hover Unit Airjet Utility Medium Storage Unit Device Seismic Detector Storage Medium Storage Unit Processor Advanced Visual Processing Unit Weapon Particle Gun Energy Gun Particle Gun Energy Cannon Light EM Pulse Cannon Ballistic Gun Assault Rifle Launcher Rocket Launcher Slashing Weapon Mining Claw Build | -11 -10 -9 -9 ------- Run | Yrd Mat Mat Sto Slots Evolved 2 | . . 2 . Power . | . . . . Propulsion 1 | . . 1 . Utility 1 | . . 1 . Weapon . | . . . . Parts Attached 34 | 7 9 16 2 Power 6 | 1 1 2 2 Engine 6 | 1 1 2 2 Core . | . . . . Reactor . | . . . . Propulsion 12 | 2 5 5 . Treads . | . . . . Leg 6 | 2 3 1 . Wheel . | . . . . Hover 6 | . 2 4 . Flight . | . . . . Utility 7 | 2 . 5 . Device 3 | 1 . 2 . Storage 2 | 1 . 1 . Processor 2 | . . 2 . Hackware . | . . . . Protection . | . . . . Artifact . | . . . . Weapon 9 | 2 3 4 . Energy Gun 3 | 1 . 2 . Energy Cannon 1 | . . 1 . Ballistic Gun 1 | 1 . . . Ballistic Cannon . | . . . . Launcher 2 | . 1 1 . Special Weapon . | . . . . Impact Weapon . | . . . . Slashing Weapon 2 | . 2 . . Piercing Weapon . | . . . . Special Melee Weapon . | . . . . Unidentified Prototypes 2 | . . . 2 Parts Lost 9 | . 2 1 6 Power . | . . . . Propulsion 3 | . . . 3 Utility 2 | . . . 2 Weapon 4 | . 2 1 1 Highest Loss Streak 6 | . 2 1 6 To Critical Strikes . | . . . . Average Backups 7 | . 3 8 9 Power . | . 1 . 2 Propulsion 1 | . . 2 2 Utility 3 | . 1 4 4 Weapon 1 | . . 2 1 Tool/Special . | . . . . Unused Backups 7 | . . 3 4 Power 2 | . . . 2 Propulsion 2 | . . 2 . Utility 3 | . . 1 2 Weapon . | . . . . Tool/Special . | . . . . Average Slot Usage (%) 96 | . 98 96 95 Engine 11 | . 14 11 11 Leg 17 | . 25 22 . Hover 12 | . 1 8 30 Device 14 | . 14 16 10 Storage 11 | . 14 11 11 Processor 5 | . . 5 10 Energy Gun 11 | . 9 13 9 Energy Cannon 5 | . . 5 10 Ballistic Gun 2 | . 9 . . Launcher 1 | . 1 1 1 Slashing Weapon 2 | . 7 . . Peak Build Rating 23 | 7 10 23 23 Average Rating 13 | 5 7 13 21 On Entrance 10 | . 7 10 23 Avg Prop Armor Cover (%) 10 | 10 . . . Naked Turns . | . . . . Heaviest Build 27 | 12 15 27 26 Greatest Support 30 | 10 20 30 30 Greatest Overweight (x) 8 | 2 4 3 8 Average Overweight (x) . | . . . . Largest Inventory Capacity 10 | 8 8 10 10 Average Capacity 9 | 7 8 9 10 Most Carried 10 | 1 8 10 9 Average Carried 7 | . 3 8 9 Final Capacity 10 | 8 8 10 10 Final Carried 9 | 1 8 9 9 Class Distribution -------------------- 68% | Mutant 31% | Scavenger-Mutant Dominant Class ---------------- Mutant | -10/Materials Scavenger-Mutant | -9/Materials Mutant | -9/Storage Resources | -11 -10 -9 -9 ----------- Run | Yrd Mat Mat Sto Matter Collected 738 | 279 82 187 190 Remotely . | . . . . Salvage Created 1099 | 111 161 452 375 Parts 65 | 10 9 22 24 Haulers Intercepted 1 | . . 1 . Recyclers Shooed 2 | . . 1 1 Parts Field Recycled . | . . . . Retrieved Matter . | . . . . Parts Self-Destructed . | . . . . Prevented . | . . . . Parts Restored . | . . . . Kills | -11 -10 -9 -9 ------- Run | Yrd Mat Mat Sto Combat Hostiles Destroyed 24 | . 4 9 11 Melee 2 | . 2 . . Guns 4 | . 2 1 1 Cannons 10 | . . 3 7 AOE 7 | . . 4 3 Classes Destroyed 8 | 2 1 4 1 Worker 2 | . . . 2 Tunneler 3 | 3 . . . Hauler 1 | . . 1 . Recycler 2 | 1 . 1 . Watcher 1 | . . 1 . Swarmer 6 | . . 3 3 Grunt 13 | . 4 3 6 Sentry 5 | . . 3 2 Best Kill Streak 6 | 4 2 3 6 Combat Bots Only 6 | . 2 3 6 Max Kills in Single Turn 3 | 1 1 3 1 Gunslinging . | . . . . Exploded 3 | . . 3 1 Melee 1 | . 1 . . Uniques/NPCs Destroyed . | . . . . Combat | -11 -10 -9 -9 -------- Run | Yrd Mat Mat Sto Hostile Shots Fired 116 | . 54 27 35 Missed 30 | . 13 8 9 Hits 86 | . 41 19 26 Projectile 86 | . 41 19 26 Critical Strikes 2 | . . 1 1 Damage Taken 1452 | . 446 266 740 Core 266 | . 87 82 97 Absorbed by Shields . | . . . . Regen/Repaired (Parts) 131 | . . 75 56 Core Remaining (%) 82 | 100 65 . . Volleys Fired 82 | 7 14 29 32 Largest 2 | 2 2 2 2 Hottest 121 | 60 60 121 121 Shots Fired 145 | 10 26 52 57 Gun 90 | 10 26 30 24 Cannon 44 | . . 19 25 Launcher 11 | . . 3 8 Special . | . . . . Kinetic 17 | 3 14 . . Thermal 70 | 7 12 27 24 Explosive 11 | . . 3 8 Electromagnetic 47 | . . 22 25 Robot Hit Streak 13 | 3 8 13 11 Robot Miss Streak 4 | 1 4 2 2 Penetration Max . | . . . . Secondary Targets . | . . . . Shots Hit Robots 109 | 8 26 36 39 Core Hits 43 | 5 6 17 15 Critical Kills . | . . . . Critical Parts Destroyed . | . . . . Critical Strikes 3 | . . 2 1 Burn 2 | . . 1 1 Corrupt 1 | . . 1 . Melee Attacks 8 | . 8 . . Impact . | . . . . Slashing 8 | . 8 . . Piercing . | . . . . Sneak Attacks 1 | . 1 . . Combat Hostiles . | . . . . Follow-up Attacks 1 | . 1 . . Damage Inflicted 2379 | 99 372 957 951 Guns 895 | 99 210 301 285 Cannons 746 | . . 316 430 Explosions 576 | . . 340 236 Melee 162 | . 162 . . Ramming . | . . . . Kinetic 167 | 43 124 . . Thermal 782 | 56 86 355 285 Explosive 507 | . . 271 236 Electromagnetic 761 | . . 331 430 Impact . | . . . . Slashing 162 | . 162 . . Piercing . | . . . . Highest Corruption 18 | . . . 18 Average Corruption 2 | . . . 2 Corruption Purged . | . . . . Corruption Blocked . | . . . . Effects 2 | . . . 2 Matter Fused 2 | . . . 2 Overload Shots . | . . . . Overflow Damage 50 | . 16 18 16 Projectiles 8 | . . 8 . Explosions 26 | . . 10 16 Melee 16 | . 16 . . Knockbacks . | . . . . Impact . | . . . . Kinetic . | . . . . Secondary . | . . . . Self-Inflicted Damage 172 | . . 44 128 Shots 4 | . . 1 3 Rammed . | . . . . Targets Rammed . | . . . . Kicked . | . . . . Crushed . | . . . . Highest Temperature 495 | . 168 405 495 Average Temperature 122 | . 78 100 156 Received Heat Transfer 480 | . 246 114 120 Effects 9 | . . 2 7 Shutdowns 3 | . . 1 2 Energy Bleed 3 | . . 1 2 Interference 2 | . . . 2 Damage (minor) 1 | . . . 1 Siege Activations . | . . . . Martial Activations . | . . . . Shielding Activations . | . . . . Robots Disrupted . | . . . . Combat Hostiles . | . . . . Robots Corrupted 1 | . . 1 . Combat Hostiles 1 | . . 1 . Parts Fried 2 | . . 1 1 Impact Corruptions . | . . . . Robots Melted . | . . . . Combat Hostiles . | . . . . Parts Melted 2 | . . 1 1 Heat Transferred 1905 | 125 200 840 740 Parts Sabotaged . | . . . . Parts Stolen . | . . . . Parts Stripped . | . . . . Power Chain Reactions 2 | . . 2 . Alert | -11 -10 -9 -9 ------- Run | Yrd Mat Mat Sto Maximum Alert Level 1 | . . 1 1 Low Security (%) 92 | 100 100 98 70 Level 1 7 | . . 1 29 Level 2 . | . . . . Level 3 . | . . . . Level 4 . | . . . . Level 5 . | . . . . High Security . | . . . . Max Security . | . . . . Peak Influence 331 | 15 30 211 331 Initial 89 | . . . 89 Average 71 | 2 7 70 151 Influence Increases 990 | 20 106 438 426 Destroy 0b10 Robot/C 480 | . 80 180 220 Destroy 0b10 Robot/NC 45 | 20 . 15 10 Destroy Leader 124 | . 20 54 50 Trap Triggered on 0b10 10 | . . 10 . Successful Hack 34 | . 6 21 7 Disable Machine 120 | . . 105 15 Destroy Structure 87 | . . 53 34 Lose Combat Pursuer 90 | . . . 90 Influence Decreases 715 | 20 106 227 362 Entered New Map 122 | . . . 122 Time Decay 503 | 20 86 217 180 Lost Part 90 | . 20 10 60 Squads Dispatched 6 | . 2 2 2 Investigation 4 | . 1 1 2 Extermination . | . . . . Reinforcement 2 | . 1 1 . Assault . | . . . . Garrison . | . . . . Intercept . | . . . . Searches Triggered . | . . . . Construction Impeded 1 | . . 1 . Haulers Reinforced . | . . . . Active Scanning Responses . | . . . . Cargo Convoy Interrupts . | . . . . Stealth | -11 -10 -9 -9 --------- Run | Yrd Mat Mat Sto Distress Signals 3 | . 2 . 1 Communications Jammed . | . . . . Distress Signals . | . . . . Times Spotted 34 | . 7 14 13 Peak Tracking Total 7 | . 4 3 7 Tactical Retreats 4 | . . . 4 Traps | -11 -10 -9 -9 ------- Run | Yrd Mat Mat Sto Traps Triggered 2 | . 1 . 1 Indirectly . | . . . . Trap Hack Attempts . | . . . . Triggered . | . . . . Disarmed . | . . . . Reprogrammed 3 | . . 3 . Reused 1 | . . 1 . Traps Extracted . | . . . . Installed . | . . . . Triggered 1 | . . 1 . Machines | -11 -10 -9 -9 ---------- Run | Yrd Mat Mat Sto Machines Disabled 8 | . . 7 1 Max in Single Turn 3 | . . 3 1 Machines Repaired . | . . . . Machines Dismantled . | . . . . Machines Sabotaged . | . . . . Overloaded Fab Kills . | . . . . Hacking | -11 -10 -9 -9 --------- Run | Yrd Mat Mat Sto Machines Accessed 14 | . 3 5 6 Terminals 12 | . 3 4 5 Fabricators . | . . . . Repair Stations 2 | . . 1 1 Recycling Units . | . . . . Scanalyzers . | . . . . Garrison Access . | . . . . Total Hacks 36 | . 6 13 17 Successful 16 | . 2 9 5 Failed 20 | . 4 4 12 Catastrophic 2 | . 1 . 1 Database Lockouts . | . . . . Manual 9 | . 4 5 . Terminals 28 | . 6 8 14 Fabricators . | . . . . Repair Stations 8 | . . 5 3 Recycling Units . | . . . . Scanalyzers . | . . . . Garrison Access . | . . . . Terminal Hacks 8 | . . 5 3 Robot Analysis 1 | . . 1 . Open Door 1 | . . . 1 Branch Access Points 1 | . . 1 . Alert Level 1 | . . . 1 Locate Traps 2 | . . 1 1 Reprogram Traps 1 | . . 1 . Zone Layout 1 | . . 1 . Fabricator Hacks . | . . . . Repair Station Hacks 6 | . . 4 2 Scan Component 3 | . . 2 1 Repair 3 | . . 2 1 Recycling Unit Hacks . | . . . . Scanalyzer . | . . . . Garrison Access Hacks . | . . . . Unauthorized Hacks 2 | . 2 . . Terminals 2 | . 2 . . Assimilate 2 | . 2 . . Fabricators . | . . . . Repair Stations . | . . . . Recycling Units . | . . . . Scanalyzers . | . . . . Garrison Access . | . . . . Data Cores Recovered . | . . . . Used . | . . . . Hacking Detections 10 | . 2 3 5 Full Trace Events 4 | . 1 1 2 Feedback Events . | . . . . Feedback Blocked . | . . . . Robot Schematics Acquired . | . . . . Robots Built . | . . . . Authchips . | . . . . Time . | . . . . Total Robot Build Rating . | . . . . Part Schematics Acquired . | . . . . Parts Built . | . . . . Authchips . | . . . . Time . | . . . . Total Part Build Rating . | . . . . Part Studies Acquired . | . . . . Parts Repaired 3 | . . 2 1 Time 84 | . . 52 32 Parts Recycled . | . . . . Recycled Matter . | . . . . Retrieved Matter . | . . . . Retrieved Components . | . . . . Parts Scanalyzed . | . . . . Part Schematics Acquired . | . . . . Parts Damaged . | . . . . Bothacking | -11 -10 -9 -9 ------------ Run | Yrd Mat Mat Sto Used RIF Installer . | . . . . Robots Hacked . | . . . . Non-combat . | . . . . Combat . | . . . . Robot Hacks Applied . | . . . . Relay Couplers Released . | . . . . Fabnet Peak Effective % . | . . . . Robots Rewired . | . . . . Allies Hacked . | . . . . Hacks Repelled . | . . . . Allies | -11 -10 -9 -9 -------- Run | Yrd Mat Mat Sto Total Allies . | . . . . Largest Group . | . . . . Highest-Rated Group . | . . . . Highest-Rated Ally . | . . . . Total Orders . | . . . . Ally Attacks . | . . . . Total Damage . | . . . . Kills . | . . . . Allies Corrupted . | . . . . Allies Melted . | . . . . Intel | -11 -10 -9 -9 ------- Run | Yrd Mat Mat Sto Active Infowar (turns) 1439 | . 333 768 338 Optics 711 | . . 373 338 Structural 682 | . . 682 . Seismic 725 | . 333 392 . Robot Analysis Total 1 | . . 1 . Derelict Logs Recovered . | . . . . Drone Launches . | . . . . Drone Recoveries . | . . . . Exploration | -11 -10 -9 -9 ------------- Run | Yrd Mat Mat Sto Turns Passed 1594 | 114 333 768 379 Spaces Moved 994 | 53 203 449 289 Core 20 | 13 3 . 4 Treads . | . . . . Legs 542 | 40 186 316 . Wheels . | . . . . Hover 432 | . 14 133 285 Flight . | . . . . Fastest Speed 50 | 50 116 52 52 Average Speed 101 | 163 121 112 59 Slowest Speed 450 | 190 250 240 450 Overloaded Moves . | . . . . Propulsion Burnouts . | . . . . Robots Hopped . | . . . . Potential Cave-ins . | . . . . Cave-ins Triggered 1 | . . . 1 Exploration Rate (%) 28 | 4 34 40 34 Regions Visited 3 Branch Regions 1 Pre-discovered Areas . | . . . . Known Exits Taken 1 | . . 1 . Unknown Exits Taken 2 | 1 1 . . Scrap Searched . | . . . . Spaces Dug 12 | . . . 12 Terrain Destroyed 125 | . . 70 55 Melee . | . . . . Projectile . | . . . . AOE 125 | . . 70 55 Terrain Rammed . | . . . . Walls Destroyed . | . . . . Machines Disabled . | . . . . Actions | -11 -10 -9 -9 --------- Run | Yrd Mat Mat Sto Total 1410 | 67 246 663 434 Wait 240 | . 3 132 105 Move 991 | 52 202 448 289 Hop . | . . . . Pick Up 18 | 1 5 12 . Fast Attach 18 | 7 5 5 1 Attach 4 | . . 4 . Detach 5 | . 1 4 . Swap 24 | . 4 13 7 Drop 21 | . 5 16 . Fire 82 | 7 14 29 32 Melee 7 | . 7 . . Ram . | . . . . Kick . | . . . . Crush . | . . . . Escape Stasis . | . . . . Rewire . | . . . . Trap . | . . . . Miscellaneous . | . . . . Route ------- -11/Scrapyard -10/Materials -9/Materials (discovered 3 exits: [*Mat] / Min / *Sto) -9/Storage History --------- Turn | Location | Event 17 | -11/Scrapyard | Discovered new exit (range 16) 115 | -11/Scrapyard | Entered Materials 306 | -10/Materials | Build established: Mutant 345 | -10/Materials | Discovered new exit (range 13) 448 | -10/Materials | Entered another Materials area 448 | -9/Materials | Evolved 2 slots: Propulsion x1, Utility x1 579 | -9/Materials | Repaired Aluminum Leg 606 | -9/Materials | Repaired Aluminum Leg 848 | -9/Materials | Identified exit to Mines 848 | -9/Materials | Identified exit to Storage 903 | -9/Materials | Build established: Scavenger-Mutant 1014 | -9/Materials | Discovered new exit (range 17) 1216 | -9/Materials | Entered Storage 1313 | -9/Storage | Repaired Lgt. EM Pulse Cannon 1409 | -9/Storage | Build established: Mutant 1573 | -9/Storage | Crushed by falling debris 1573 | -9/Storage | System corruption reached 10% 1595 | -9/Storage | Self-destructed Last Messages --------------- 01573_ Weight Redist. System destroyed. 01573_ System corrupted by crushing effect (+5). 01573_ Airjet destroyed. 01573_ System corrupted by crushing effect (+4). 01573_ Imp. Hover Unit destroyed. 01573_ System corrupted by crushing effect (+5). 01577_ U-05 Engineer lays Concrete. 01578_ System corrupted: Matter fused (-9). 01578_ U-05 Engineer builds a Wall. 01583_ U-05 Engineer lays Concrete. 01585_ The unstable cave ceiling collapses. 01585_ U-05 Engineer lays Concrete. 01586_ R-06 Scavenger collects Lgt. Ion Engine. 01586_ U-05 Engineer lays Concrete. 01587_ U-05 Engineer builds a Wall. 01588_ The unstable cave ceiling collapses. 01591_ U-05 Engineer lays Concrete. 01592_ U-05 Engineer builds a Wall. 01593_ Rocket Launcher destroyed. 01593_ Destroyed Rocket Launcher. Map ----- +----------------------------------------------------+ | ????????????????????????????? | | ????????????????????????????? | | ????????????????????????????? | | ????????????????????????????? | | ????????????????????????????? | | ????????????????????????????? | | ????????????????????????????? | | ??????? ????????????????????? | | ??????? ????????????????????? | | ??????? ??#?????????????????? | | ??????# ? ?????????????????? | | ??????# ? ??????????????????? | | ??????# # ????????????????### | | ??????/ w ????????????????# | | ??????# # ????????????????# T | | ??????#k# ????????????????# | | ???#### # ????????????????## | | ???# # ##?????????????????# | | ???? ##????????????????# | | ????# #????????????????# | | ????" ##???????????????# | | ????" # #################### | | ????" u %= | | ?#### ####????###### ! | | # # #?????????# | | @ # #?????????# | | ##?######### | | ?# ###??#! ! # | | ?### #????# = %+ | | ???# ## #????#] ! # #### | | ???# ####????#####+####+##??# | | ???# #???????????# #????????# | | ???# #?#####?????# #????????? | | ???# ### #?????# #????????? | | ???# T ####### ##???????? | | ???##### +???????? | | ???????## ##^??????? | | ????????# #????????? | | ????????# #????????? | | ????????############????????? | | ????????????????????????????? | | ????????????????????????????? | | ????????????????????????????? | | | | | | | | | | | | | | | +----------------------------------------------------+ Best States ------------- Heat Dissipation 28 Energy Generation 14 Energy Capacity 280 Matter Stores 300 Matter Capacity 300 Sight Range 20 Terrain Scan Density 10 Additional Mass Support 6 Evasion (%) 55 Item Schematics ----------------- None Robot Schematics ------------------ None Fabricated ------------ Nothing Repaired ---------- Aluminum Leg | 55% | -9/Materials Aluminum Leg | 61% | -9/Materials Lgt. EM Pulse Cannon | 20% | -9/Storage Studied --------- None Alien Tech Used ----------------- None Achievements -------------- Resistances Are Futile Challenges ------------ None Game ------ Seed DeuteriumBarragePurifier Manual? 0 Play Time 00:41:00 Cumulative 47.0 hours Start 2025.11.09 @ 15:38:39 End 2025.11.09 @ 16:42:43 Sessions 1 Manual Loads 0 Difficulty Rogue Special Mode None Game No. 212 Rogue 212 Adventurer 0 Explorer 0 Win Type - Total 0 Types 0/0/0/0/0/0/0/0/0/0 Lore% 27 Gallery% 20 Achievement% 14 Wizard Run 0 Options --------- Layout 0 ASCII 1 Keyboard 1 Movement Numpad Keybinds 1 Fullscreen 1 Font 18/X11 Map View 76x50 Zoom Use 0% Tactical HUD 1 Map Filters NONE Filters NONE Steam 1 RUN: f921b307-a9f5-4857-ab46-fb6af89d81b9